[Event "Titled Tuesday Blitz January 10 Early 2023"]
[White "Malek, Jan"]
[Black "Nugumanov, Bakhtiyar"]
[WhiteFideId "21864080"]
[BlackFideId "13701797"]
[WhiteElo "2370"]
[BlackElo "2316"]
[Result "1-0"]
[Round "02"]
[TimeControl "180+2"]
[Date "2023.01.10"]
[WhiteClock "0:00:04"]
[BlackClock "0:00:02"]

1. c4 {[%clk 0:02:59]}  e6 {[%clk 0:02:59]} 2. Nc3 {[%clk 0:03:00]}  d5 {[%clk 0:02:59]} 3. Nf3 {[%clk 0:02:58]}  Nf6 {[%clk 0:02:57]} 4. e3 {[%clk 0:02:59]}  a6 {[%clk 0:02:56]} 5. b3 {[%clk 0:02:59]}  c5 {[%clk 0:02:56]} 6. Bb2 {[%clk 0:02:58]}  Nc6 {[%clk 0:02:49]} 7. cxd5 {[%clk 0:02:58]}  exd5 {[%clk 0:02:29]} 8. d4 {[%clk 0:02:58]}  cxd4 {[%clk 0:02:22]} 9. Nxd4 {[%clk 0:02:57]}  Bb4 {[%clk 0:02:23]} 10. a3 {[%clk 0:02:55]}  Bxc3+ {[%clk 0:02:06]} 11. Bxc3 {[%clk 0:02:52]}  O-O {[%clk 0:02:07]} 12. Bd3 {[%clk 0:02:50]}  Ne4 {[%clk 0:02:05]} 13. Bb2 {[%clk 0:02:50]}  Qg5 {[%clk 0:02:00]} 14. Nf3 {[%clk 0:02:37]}  Qxg2 {[%clk 0:01:45]} 15. Rf1 {[%clk 0:02:36]}  Bg4 {[%clk 0:01:40]} 16. Bxe4 {[%clk 0:02:09]}  dxe4 {[%clk 0:01:39]} 17. Rg1 {[%clk 0:02:10]}  Qxf3 {[%clk 0:01:38]} 18. Rxg4 {[%clk 0:02:09]}  Qh1+ {[%clk 0:01:19]} 19. Ke2 {[%clk 0:01:57]}  Qf3+ {[%clk 0:01:19]} 20. Kf1 {[%clk 0:01:53]}  g6 {[%clk 0:00:32]} 21. Qxf3 {[%clk 0:01:22]}  exf3 {[%clk 0:00:33]} 22. Bf6 {[%clk 0:01:23]}  Rac8 {[%clk 0:00:15]} 23. b4 {[%clk 0:01:12]}  b5 {[%clk 0:00:10]} 24. Rf4 {[%clk 0:01:12]}  a5 {[%clk 0:00:10]} 25. Rb1 {[%clk 0:01:10]}  axb4 {[%clk 0:00:09]} 26. axb4 {[%clk 0:01:11]}  Rfe8 {[%clk 0:00:07]} 27. Ke1 {[%clk 0:00:46]}  Re6 {[%clk 0:00:06]} 28. Rxf3 {[%clk 0:00:42]}  Re4 {[%clk 0:00:06]} 29. Bc3 {[%clk 0:00:41]}  Rc4 {[%clk 0:00:04]} 30. Bd2 {[%clk 0:00:39]}  Ne5 {[%clk 0:00:03]} 31. Rf6 {[%clk 0:00:35]}  Kg7 {[%clk 0:00:02]} 32. Rd6 {[%clk 0:00:30]}  Nf3+ {[%clk 0:00:02]} 33. Ke2 {[%clk 0:00:31]}  Nxd2 {[%clk 0:00:02]} 34. Rxd2 {[%clk 0:00:30]}  Rc2 {[%clk 0:00:02]} 35. Rb2 {[%clk 0:00:17]}  Rxd2+ {[%clk 0:00:01]} 36. Kxd2 {[%clk 0:00:15]}  Rc4 {[%clk 0:00:02]} 37. Kd3 {[%clk 0:00:16]}  Kf6 {[%clk 0:00:03]} 38. f4 {[%clk 0:00:13]}  Ke6 {[%clk 0:00:03]} 39. e4 {[%clk 0:00:12]}  f5 {[%clk 0:00:02]} 40. Re2 {[%clk 0:00:04]} 1-0


[Site "https://www.chess.com"]

[Event "Titled Tuesday Blitz January 10 Early 2023"]
[White "Spata, German"]
[Black "Sargissyan, Sargis"]
[WhiteFideId "113026"]
[BlackFideId "13303210"]
[WhiteElo "2383"]
[BlackElo "2234"]
[Result "0-1"]
[Round "02"]
[TimeControl "180+2"]
[Date "2023.01.10"]
[WhiteClock "0:00:07"]
[BlackClock "0:00:09"]

1. Nf3 {[%clk 0:03:00]}  Nf6 {[%clk 0:02:59]} 2. g3 {[%clk 0:02:59]}  g6 {[%clk 0:03:00]} 3. Bg2 {[%clk 0:02:59]}  Bg7 {[%clk 0:03:00]} 4. O-O {[%clk 0:03:00]}  O-O {[%clk 0:03:00]} 5. b3 {[%clk 0:02:51]}  c5 {[%clk 0:02:55]} 6. Bb2 {[%clk 0:02:50]}  d5 {[%clk 0:02:56]} 7. e3 {[%clk 0:02:44]}  Nc6 {[%clk 0:02:43]} 8. d4 {[%clk 0:02:43]}  cxd4 {[%clk 0:02:41]} 9. Nxd4 {[%clk 0:02:43]}  Bg4 {[%clk 0:02:34]} 10. Qd2 {[%clk 0:02:22]}  Nxd4 {[%clk 0:01:53]} 11. Bxd4 {[%clk 0:02:23]}  Ne4 {[%clk 0:01:52]} 12. Bxe4 {[%clk 0:02:16]}  dxe4 {[%clk 0:01:52]} 13. Bxg7 {[%clk 0:02:15]}  Kxg7 {[%clk 0:01:50]} 14. Qxd8 {[%clk 0:01:57]}  Rfxd8 {[%clk 0:01:50]} 15. Na3 {[%clk 0:01:39]}  Rac8 {[%clk 0:01:38]} 16. c4 {[%clk 0:01:37]}  Rd2 {[%clk 0:01:32]} 17. Rfc1 {[%clk 0:01:34]}  Rc5 {[%clk 0:00:56]} 18. Rc2 {[%clk 0:01:27]}  Rd3 {[%clk 0:00:51]} 19. Nb5 {[%clk 0:01:21]}  a6 {[%clk 0:00:41]} 20. Nc3 {[%clk 0:01:17]}  Bf3 {[%clk 0:00:42]} 21. Rac1 {[%clk 0:01:07]}  h5 {[%clk 0:00:39]} 22. Ne2 {[%clk 0:01:05]}  e5 {[%clk 0:00:28]} 23. Nc3 {[%clk 0:00:58]}  h4 {[%clk 0:00:24]} 24. Kf1 {[%clk 0:00:40]}  hxg3 {[%clk 0:00:23]} 25. fxg3 {[%clk 0:00:36]}  Rxe3 {[%clk 0:00:20]} 26. Rd2 {[%clk 0:00:28]}  Rd3 {[%clk 0:00:19]} 27. Rxd3 {[%clk 0:00:28]}  exd3 {[%clk 0:00:20]} 28. Kf2 {[%clk 0:00:29]}  e4 {[%clk 0:00:17]} 29. Ke3 {[%clk 0:00:28]}  f5 {[%clk 0:00:15]} 30. Nd5 {[%clk 0:00:27]}  g5 {[%clk 0:00:12]} 31. Kd4 {[%clk 0:00:25]}  d2 {[%clk 0:00:10]} 32. Rg1 {[%clk 0:00:18]}  Rxd5+ {[%clk 0:00:10]} 33. cxd5 {[%clk 0:00:12]}  Kf7 {[%clk 0:00:10]} 34. h4 {[%clk 0:00:06]}  gxh4 {[%clk 0:00:08]} 35. gxh4 {[%clk 0:00:07]}  d1=Q+ {[%clk 0:00:08]} 36. Rxd1 {[%clk 0:00:06]}  Bxd1 {[%clk 0:00:09]} 37. d6 {[%clk 0:00:06]}  Ke6 {[%clk 0:00:09]} 38. d7 {[%clk 0:00:06]}  Kxd7 {[%clk 0:00:09]} 39. Ke3 {[%clk 0:00:06]}  Bg4 {[%clk 0:00:09]} 40. Kf4 {[%clk 0:00:07]}  Ke6 {[%clk 0:00:09]} 0-1


[Site "https://www.chess.com"]

[Event "Titled Tuesday Blitz January 10 Early 2023"]
[White "Degtiarev, Evgeny"]
[Black "Mohamed Anees M"]
[WhiteFideId "4149610"]
[BlackFideId "35065815"]
[WhiteElo "2385"]
[BlackElo "2315"]
[Result "0-1"]
[Round "02"]
[TimeControl "180+2"]
[Date "2023.01.10"]
[WhiteClock "0:00:05"]
[BlackClock "0:01:52"]

1. d4 {[%clk 0:02:57]}  Nf6 {[%clk 0:02:59]} 2. c4 {[%clk 0:02:56]}  g6 {[%clk 0:02:59]} 3. Nc3 {[%clk 0:02:57]}  Bg7 {[%clk 0:02:59]} 4. e4 {[%clk 0:02:57]}  d6 {[%clk 0:03:00]} 5. h3 {[%clk 0:02:57]}  O-O {[%clk 0:03:00]} 6. Nf3 {[%clk 0:02:58]}  c5 {[%clk 0:03:00]} 7. d5 {[%clk 0:02:56]}  a6 {[%clk 0:03:00]} 8. Be2 {[%clk 0:02:53]}  b5 {[%clk 0:02:52]} 9. cxb5 {[%clk 0:02:53]}  axb5 {[%clk 0:02:53]} 10. Bxb5 {[%clk 0:02:53]}  Ba6 {[%clk 0:02:54]} 11. Bxa6 {[%clk 0:02:50]}  Rxa6 {[%clk 0:02:51]} 12. O-O {[%clk 0:02:51]}  Nbd7 {[%clk 0:02:51]} 13. a4 {[%clk 0:02:45]}  Qa8 {[%clk 0:02:50]} 14. Ra3 {[%clk 0:02:43]}  c4 {[%clk 0:02:46]} 15. Nd2 {[%clk 0:02:42]}  Rc8 {[%clk 0:02:45]} 16. Qe2 {[%clk 0:02:37]}  Nb6 {[%clk 0:02:44]} 17. Qd1 {[%clk 0:02:22]}  Nfd7 {[%clk 0:02:44]} 18. Ndb1 {[%clk 0:02:21]}  Nc5 {[%clk 0:02:44]} 19. Bg5 {[%clk 0:02:17]}  Kf8 {[%clk 0:02:20]} 20. f4 {[%clk 0:01:56]}  Nbxa4 {[%clk 0:02:18]} 21. Nxa4 {[%clk 0:01:46]}  Rxa4 {[%clk 0:02:18]} 22. e5 {[%clk 0:01:38]}  Rxa3 {[%clk 0:02:11]} 23. Nxa3 {[%clk 0:01:36]}  c3 {[%clk 0:02:10]} 24. exd6 {[%clk 0:01:30]}  exd6 {[%clk 0:02:11]} 25. Nb5 {[%clk 0:01:28]}  cxb2 {[%clk 0:02:11]} 26. Nxd6 {[%clk 0:01:27]}  Rb8 {[%clk 0:02:11]} 27. Qc2 {[%clk 0:01:04]}  Qxd5 {[%clk 0:02:07]} 28. Nc4 {[%clk 0:00:51]}  h6 {[%clk 0:02:05]} 29. Bh4 {[%clk 0:00:42]}  Qd3 {[%clk 0:01:58]} 30. Qxd3 {[%clk 0:00:20]}  Nxd3 {[%clk 0:01:57]} 31. Rb1 {[%clk 0:00:20]}  Nxf4 {[%clk 0:01:53]} 32. Bg3 {[%clk 0:00:19]}  Ne2+ {[%clk 0:01:54]} 33. Kf2 {[%clk 0:00:18]}  Nxg3 {[%clk 0:01:53]} 34. Kxg3 {[%clk 0:00:19]}  Rc8 {[%clk 0:01:52]} 35. Rxb2 {[%clk 0:00:05]} 0-1


[Site "https://www.chess.com"]

[Event "Titled Tuesday Blitz January 10 Early 2023"]
[White "Gatterer, Florian"]
[Black "Khripachenko, Alexander"]
[WhiteFideId "811688"]
[BlackFideId "54184975"]
[WhiteElo "2170"]
[BlackElo "2110"]
[Result "0-1"]
[Round "02"]
[TimeControl "180+2"]
[Date "2023.01.10"]
[WhiteClock "0:00:02"]
[BlackClock "0:01:14"]

1. d4 {[%clk 0:03:00]}  d5 {[%clk 0:02:59]} 2. c4 {[%clk 0:03:00]}  e6 {[%clk 0:03:00]} 3. Nc3 {[%clk 0:03:00]}  Be7 {[%clk 0:02:59]} 4. cxd5 {[%clk 0:02:59]}  exd5 {[%clk 0:03:00]} 5. Bf4 {[%clk 0:02:59]}  c6 {[%clk 0:03:01]} 6. e3 {[%clk 0:03:00]}  Bf5 {[%clk 0:03:01]} 7. Bd3 {[%clk 0:02:59]}  Bxd3 {[%clk 0:03:01]} 8. Qxd3 {[%clk 0:03:00]}  Nf6 {[%clk 0:03:01]} 9. Nge2 {[%clk 0:02:57]}  O-O {[%clk 0:03:01]} 10. h3 {[%clk 0:02:56]}  Re8 {[%clk 0:03:02]} 11. O-O {[%clk 0:02:55]}  Nbd7 {[%clk 0:03:02]} 12. Rab1 {[%clk 0:02:53]}  a5 {[%clk 0:03:01]} 13. a3 {[%clk 0:02:53]}  Bf8 {[%clk 0:02:59]} 14. Bg3 {[%clk 0:02:46]}  h6 {[%clk 0:02:55]} 15. Bh2 {[%clk 0:02:42]}  g6 {[%clk 0:02:52]} 16. Bg3 {[%clk 0:02:42]}  h5 {[%clk 0:02:51]} 17. Bh2 {[%clk 0:02:42]}  Kg7 {[%clk 0:02:37]} 18. Bf4 {[%clk 0:02:39]}  Qb6 {[%clk 0:02:27]} 19. Bh2 {[%clk 0:02:26]}  a4 {[%clk 0:02:24]} 20. Qc2 {[%clk 0:02:22]}  Qa6 {[%clk 0:02:24]} 21. Nf4 {[%clk 0:02:02]}  b5 {[%clk 0:02:19]} 22. Nd3 {[%clk 0:02:02]}  Nb6 {[%clk 0:02:19]} 23. Nc5 {[%clk 0:01:49]}  Qa7 {[%clk 0:02:14]} 24. f4 {[%clk 0:01:29]}  Nc4 {[%clk 0:02:11]} 25. f5 {[%clk 0:01:16]}  Nxe3 {[%clk 0:02:11]} 26. Qf2 {[%clk 0:01:16]}  Nxf1 {[%clk 0:02:01]} 27. Rxf1 {[%clk 0:01:17]}  Bxc5 {[%clk 0:02:01]} 28. dxc5 {[%clk 0:01:17]}  Qe7 {[%clk 0:02:01]} 29. Bf4 {[%clk 0:01:11]}  Ne4 {[%clk 0:01:50]} 30. f6+ {[%clk 0:01:05]}  Nxf6 {[%clk 0:01:39]} 31. Bg5 {[%clk 0:01:01]}  Ng4 {[%clk 0:01:34]} 32. Qd4+ {[%clk 0:00:19]}  Qe5 {[%clk 0:01:28]} 33. Qxe5+ {[%clk 0:00:19]}  Nxe5 {[%clk 0:01:28]} 34. Bf6+ {[%clk 0:00:18]}  Kg8 {[%clk 0:01:28]} 35. Ne2 {[%clk 0:00:15]}  Nf3+ {[%clk 0:01:28]} 36. Rxf3 {[%clk 0:00:14]}  Rxe2 {[%clk 0:01:27]} 37. g4 {[%clk 0:00:15]}  Rae8 {[%clk 0:01:22]} 38. gxh5 {[%clk 0:00:13]}  Re1+ {[%clk 0:01:02]} 39. Kf2 {[%clk 0:00:13]}  R8e2+ {[%clk 0:01:03]} 40. Kg3 {[%clk 0:00:13]}  Re3 {[%clk 0:01:04]} 41. hxg6 {[%clk 0:00:12]}  fxg6 {[%clk 0:01:05]} 42. Rxe3 {[%clk 0:00:09]}  Rxe3+ {[%clk 0:01:06]} 43. Kg4 {[%clk 0:00:10]}  Re4+ {[%clk 0:01:06]} 44. Kg5 {[%clk 0:00:09]}  Kf7 {[%clk 0:01:07]} 45. Bc3 {[%clk 0:00:09]}  d4 {[%clk 0:01:07]} 46. Bb4 {[%clk 0:00:09]}  d3 {[%clk 0:01:08]} 47. h4 {[%clk 0:00:08]}  Re2 {[%clk 0:01:08]} 48. h5 {[%clk 0:00:09]}  gxh5 {[%clk 0:01:09]} 49. Kxh5 {[%clk 0:00:09]}  d2 {[%clk 0:01:09]} 50. Bxd2 {[%clk 0:00:08]}  Rxd2 {[%clk 0:01:10]} 51. Kg5 {[%clk 0:00:09]}  Rxb2 {[%clk 0:01:10]} 52. Kf5 {[%clk 0:00:10]}  b4 {[%clk 0:01:11]} 53. Ke5 {[%clk 0:00:05]}  bxa3 {[%clk 0:01:11]} 54. Kd6 {[%clk 0:00:06]}  a2 {[%clk 0:01:11]} 55. Kxc6 {[%clk 0:00:07]}  a1=Q {[%clk 0:01:12]} 56. Kc7 {[%clk 0:00:06]}  Rc2 {[%clk 0:01:13]} 57. c6 {[%clk 0:00:07]}  Qc3 {[%clk 0:01:13]} 58. Kd8 {[%clk 0:00:08]}  Qd4+ {[%clk 0:01:11]} 59. Kc7 {[%clk 0:00:07]}  Qa7+ {[%clk 0:01:12]} 60. Kd6 {[%clk 0:00:06]}  a3 {[%clk 0:01:11]} 61. Kd5 {[%clk 0:00:03]}  a2 {[%clk 0:01:12]} 62. Kd6 {[%clk 0:00:03]}  a1=Q {[%clk 0:01:12]} 63. Kd5 {[%clk 0:00:02]}  Rd2+ {[%clk 0:01:12]} 64. Ke4 {[%clk 0:00:02]}  Q1d4+ {[%clk 0:01:13]} 65. Kf3 {[%clk 0:00:02]}  Qd5+ {[%clk 0:01:13]} 66. Kf4 {[%clk 0:00:02]}  Qa4+ {[%clk 0:01:13]} 67. Kg3 {[%clk 0:00:03]}  Rd3+ {[%clk 0:01:13]} 68. Kh2 {[%clk 0:00:02]}  Qh5+ {[%clk 0:01:13]} 69. Kg1 {[%clk 0:00:03]}  Qg5+ {[%clk 0:01:13]} 70. Kf2 {[%clk 0:00:03]}  Qgf4+ {[%clk 0:01:14]} 71. Ke2 {[%clk 0:00:03]}  Qxc6 {[%clk 0:01:14]} 72. Ke1 {[%clk 0:00:02]}  Qc3+ {[%clk 0:01:14]} 73. Ke2 {[%clk 0:00:02]}  Re3+ {[%clk 0:01:15]} 74. Kd1 {[%clk 0:00:02]}  Qfd4# {[%clk 0:01:14]} 0-1


[Site "https://www.chess.com"]

[Event "Titled Tuesday Blitz January 10 Early 2023"]
[White "Maltsevskaya, Aleksandra"]
[Black "Qashashvili, Alexandre"]
[WhiteFideId "24174041"]
[BlackFideId "13600842"]
[WhiteElo "2390"]
[BlackElo "2505"]
[Result "1-0"]
[Round "02"]
[TimeControl "180+2"]
[Date "2023.01.10"]
[WhiteClock "0:01:36"]
[BlackClock "0:01:09"]

1. e4 {[%clk 0:03:00]}  c6 {[%clk 0:03:00]} 2. d3 {[%clk 0:02:58]}  d5 {[%clk 0:02:59]} 3. Nd2 {[%clk 0:02:59]}  dxe4 {[%clk 0:02:59]} 4. dxe4 {[%clk 0:02:59]}  Nf6 {[%clk 0:02:59]} 5. Ngf3 {[%clk 0:02:59]}  Bg4 {[%clk 0:02:58]} 6. h3 {[%clk 0:02:53]}  Bh5 {[%clk 0:02:56]} 7. g4 {[%clk 0:02:50]}  Bg6 {[%clk 0:02:54]} 8. Bd3 {[%clk 0:02:51]}  Nbd7 {[%clk 0:02:49]} 9. O-O {[%clk 0:02:48]}  e5 {[%clk 0:02:48]} 10. Qe2 {[%clk 0:02:47]}  Bc5 {[%clk 0:02:47]} 11. Nc4 {[%clk 0:02:47]}  Qe7 {[%clk 0:02:40]} 12. Bg5 {[%clk 0:02:39]}  h6 {[%clk 0:02:40]} 13. Bh4 {[%clk 0:02:39]}  O-O {[%clk 0:02:36]} 14. Bg3 {[%clk 0:02:29]}  Bd6 {[%clk 0:02:30]} 15. Nxd6 {[%clk 0:02:28]}  Qxd6 {[%clk 0:02:31]} 16. Nh4 {[%clk 0:02:21]}  Bh7 {[%clk 0:02:29]} 17. Nf5 {[%clk 0:02:08]}  Bxf5 {[%clk 0:02:26]} 18. exf5 {[%clk 0:02:09]}  Qb4 {[%clk 0:02:16]} 19. c3 {[%clk 0:02:08]}  Qc5 {[%clk 0:02:15]} 20. Rad1 {[%clk 0:02:07]}  Rfe8 {[%clk 0:02:12]} 21. Bc4 {[%clk 0:02:07]}  Nb6 {[%clk 0:02:12]} 22. Bb3 {[%clk 0:02:07]}  Nbd5 {[%clk 0:02:10]} 23. Rd2 {[%clk 0:02:05]}  Nf4 {[%clk 0:02:07]} 24. Bxf4 {[%clk 0:02:04]}  exf4 {[%clk 0:02:08]} 25. Qf3 {[%clk 0:02:04]}  Qe5 {[%clk 0:01:45]} 26. Rd4 {[%clk 0:01:52]}  Qe2 {[%clk 0:01:37]} 27. Qxf4 {[%clk 0:01:48]}  Qxb2 {[%clk 0:01:34]} 28. Qc7 {[%clk 0:01:41]}  Rf8 {[%clk 0:01:22]} 29. Rd3 {[%clk 0:01:40]}  Nd5 {[%clk 0:01:17]} 30. Qxb7 {[%clk 0:01:38]}  Nxc3 {[%clk 0:01:13]} 31. Bxf7+ {[%clk 0:01:37]}  Rxf7 {[%clk 0:01:09]} 32. Qxb2 {[%clk 0:01:37]}  Ne2+ {[%clk 0:01:09]} 33. Qxe2 {[%clk 0:01:36]} 1-0


[Site "https://www.chess.com"]

[Event "Titled Tuesday Blitz January 10 Early 2023"]
[White "Jiganchine, Roman"]
[Black "Novik, Maxim"]
[WhiteFideId "2603667"]
[BlackFideId "4102924"]
[WhiteElo "2205"]
[BlackElo "2436"]
[Result "1/2-1/2"]
[Round "02"]
[TimeControl "180+2"]
[Date "2023.01.10"]
[WhiteClock "0:00:07"]
[BlackClock "0:01:22"]

1. e4 {[%clk 0:03:00]}  c5 {[%clk 0:02:59]} 2. Nf3 {[%clk 0:02:59]}  e6 {[%clk 0:02:59]} 3. g3 {[%clk 0:02:57]}  d5 {[%clk 0:02:55]} 4. exd5 {[%clk 0:02:53]}  exd5 {[%clk 0:02:55]} 5. Bg2 {[%clk 0:02:53]}  Nf6 {[%clk 0:02:55]} 6. O-O {[%clk 0:02:53]}  Be7 {[%clk 0:02:55]} 7. d4 {[%clk 0:02:51]}  O-O {[%clk 0:02:50]} 8. dxc5 {[%clk 0:02:36]}  Bxc5 {[%clk 0:02:49]} 9. Nbd2 {[%clk 0:02:36]}  Nc6 {[%clk 0:02:47]} 10. Nb3 {[%clk 0:02:35]}  Bb6 {[%clk 0:02:47]} 11. h3 {[%clk 0:02:34]}  h6 {[%clk 0:02:47]} 12. Re1 {[%clk 0:02:34]}  Re8 {[%clk 0:02:31]} 13. Rxe8+ {[%clk 0:01:58]}  Qxe8 {[%clk 0:02:29]} 14. Nfd4 {[%clk 0:01:45]}  Nxd4 {[%clk 0:02:27]} 15. Nxd4 {[%clk 0:01:44]}  Bxd4 {[%clk 0:02:27]} 16. Qxd4 {[%clk 0:01:44]}  Qe1+ {[%clk 0:02:27]} 17. Kh2 {[%clk 0:01:40]}  Bf5 {[%clk 0:02:25]} 18. b3 {[%clk 0:01:12]}  Re8 {[%clk 0:02:23]} 19. Bg5 {[%clk 0:00:59]}  Qe5 {[%clk 0:01:52]} 20. Qxe5 {[%clk 0:00:35]}  Rxe5 {[%clk 0:01:51]} 21. Bxf6 {[%clk 0:00:34]}  gxf6 {[%clk 0:01:51]} 22. Rd1 {[%clk 0:00:16]}  Bxc2 {[%clk 0:01:49]} 23. Rxd5 {[%clk 0:00:13]}  b6 {[%clk 0:01:49]} 24. Rxe5 {[%clk 0:00:09]}  fxe5 {[%clk 0:01:48]} 25. Bd5 {[%clk 0:00:09]}  Kf8 {[%clk 0:01:46]} 26. f4 {[%clk 0:00:08]}  exf4 {[%clk 0:01:45]} 27. gxf4 {[%clk 0:00:08]}  Ke7 {[%clk 0:01:46]} 28. Kg3 {[%clk 0:00:08]}  f6 {[%clk 0:01:46]} 29. Kf2 {[%clk 0:00:08]}  Kd6 {[%clk 0:01:46]} 30. Bf7 {[%clk 0:00:08]}  Kc5 {[%clk 0:01:46]} 31. Ke3 {[%clk 0:00:08]}  Kb4 {[%clk 0:01:44]} 32. Kd2 {[%clk 0:00:09]}  Bb1 {[%clk 0:01:43]} 33. Kc1 {[%clk 0:00:06]}  Bxa2 {[%clk 0:01:43]} 34. Kb2 {[%clk 0:00:06]}  Bxb3 {[%clk 0:01:43]} 35. Bxb3 {[%clk 0:00:06]}  a5 {[%clk 0:01:42]} 36. Be6 {[%clk 0:00:06]}  b5 {[%clk 0:01:42]} 37. Bd7 {[%clk 0:00:06]}  a4 {[%clk 0:01:42]} 38. Ka2 {[%clk 0:00:06]}  Ka5 {[%clk 0:01:41]} 39. Ka3 {[%clk 0:00:06]}  b4+ {[%clk 0:01:42]} 40. Ka2 {[%clk 0:00:06]}  a3 {[%clk 0:01:34]} 41. Kb3 {[%clk 0:00:05]}  Kb6 {[%clk 0:01:34]} 42. Be6 {[%clk 0:00:04]}  Kc5 {[%clk 0:01:35]} 43. Bf7 {[%clk 0:00:04]}  Kd4 {[%clk 0:01:34]} 44. Kxb4 {[%clk 0:00:04]}  Ke4 {[%clk 0:01:34]} 45. Kxa3 {[%clk 0:00:04]}  Kxf4 {[%clk 0:01:34]} 46. Be6 {[%clk 0:00:04]}  Ke5 {[%clk 0:01:32]} 47. Bc8 {[%clk 0:00:03]}  f5 {[%clk 0:01:32]} 48. Kb4 {[%clk 0:00:04]}  f4 {[%clk 0:01:32]} 49. Bb7 {[%clk 0:00:03]}  Kd4 {[%clk 0:01:32]} 50. h4 {[%clk 0:00:03]}  Ke3 {[%clk 0:01:31]} 51. Kc3 {[%clk 0:00:03]}  f3 {[%clk 0:01:31]} 52. Ba6 {[%clk 0:00:01]}  h5 {[%clk 0:01:25]} 53. Kc2 {[%clk 0:00:01]}  Kf2 {[%clk 0:01:23]} 54. Kd1 {[%clk 0:00:01]}  Kg3 {[%clk 0:01:21]} 55. Ke1 {[%clk 0:00:01]}  Kxh4 {[%clk 0:01:21]} 56. Kf2 {[%clk 0:00:01]}  Kg4 {[%clk 0:01:21]} 57. Bb7 {[%clk 0:00:02]}  h4 {[%clk 0:01:21]} 58. Bxf3+ {[%clk 0:00:02]}  Kf4 {[%clk 0:01:21]} 59. Bc6 {[%clk 0:00:03]}  h3 {[%clk 0:01:21]} 60. Bf3 {[%clk 0:00:04]}  h2 {[%clk 0:01:21]} 61. Bh1 {[%clk 0:00:05]}  Kg4 {[%clk 0:01:21]} 62. Bf3+ {[%clk 0:00:05]}  Kf4 {[%clk 0:01:21]} 63. Bh1 {[%clk 0:00:06]}  Kg4 {[%clk 0:01:21]} 64. Bf3+ {[%clk 0:00:07]}  Kf4 {[%clk 0:01:22]} 1/2-1/2


[Site "https://www.chess.com"]

[Event "Titled Tuesday Blitz January 10 Early 2023"]
[White "Flores Quillas, Diego Saul Rodri"]
[Black "Kalajzic, Ivan"]
[WhiteFideId "3822508"]
[BlackFideId "14506378"]
[WhiteElo "2359"]
[BlackElo "2062"]
[Result "1-0"]
[Round "02"]
[TimeControl "180+2"]
[Date "2023.01.10"]
[WhiteClock "0:00:14"]
[BlackClock "0:00:04"]

1. e4 {[%clk 0:02:39]}  Nc6 {[%clk 0:02:59]} 2. d4 {[%clk 0:02:38]}  e5 {[%clk 0:02:59]} 3. d5 {[%clk 0:02:37]}  Nce7 {[%clk 0:02:59]} 4. c4 {[%clk 0:02:36]}  Nf6 {[%clk 0:02:59]} 5. Nc3 {[%clk 0:02:36]}  Ng6 {[%clk 0:02:59]} 6. g3 {[%clk 0:02:35]}  Bc5 {[%clk 0:02:59]} 7. Bg2 {[%clk 0:02:35]}  d6 {[%clk 0:02:59]} 8. Nge2 {[%clk 0:02:34]}  O-O {[%clk 0:02:56]} 9. O-O {[%clk 0:02:31]}  a6 {[%clk 0:02:55]} 10. Kh1 {[%clk 0:02:30]}  h6 {[%clk 0:02:50]} 11. h3 {[%clk 0:02:29]}  Nh7 {[%clk 0:02:50]} 12. Qd3 {[%clk 0:02:22]}  f5 {[%clk 0:02:49]} 13. exf5 {[%clk 0:02:22]}  Bxf5 {[%clk 0:02:49]} 14. Be4 {[%clk 0:02:22]}  Qd7 {[%clk 0:02:43]} 15. Bxf5 {[%clk 0:02:20]}  Rxf5 {[%clk 0:02:39]} 16. Ne4 {[%clk 0:02:19]}  Ba7 {[%clk 0:02:34]} 17. Kg2 {[%clk 0:02:15]}  Raf8 {[%clk 0:02:34]} 18. Be3 {[%clk 0:02:15]}  Bxe3 {[%clk 0:02:32]} 19. Qxe3 {[%clk 0:02:16]}  Rf3 {[%clk 0:02:26]} 20. Qd2 {[%clk 0:02:00]}  Qf5 {[%clk 0:02:15]} 21. N2c3 {[%clk 0:01:50]}  Nh4+ {[%clk 0:01:53]} 22. Kh2 {[%clk 0:01:50]}  Qh5 {[%clk 0:01:19]} 23. Qd1 {[%clk 0:00:54]}  Nf5 {[%clk 0:00:58]} 24. Nd2 {[%clk 0:00:46]}  Nd4 {[%clk 0:00:53]} 25. Nxf3 {[%clk 0:00:45]}  Rxf3 {[%clk 0:00:53]} 26. Ne2 {[%clk 0:00:29]}  Ng5 {[%clk 0:00:46]} 27. Ng1 {[%clk 0:00:29]}  e4 {[%clk 0:00:27]} 28. Qxd4 {[%clk 0:00:26]}  e3 {[%clk 0:00:18]} 29. fxe3 {[%clk 0:00:17]}  Nf7 {[%clk 0:00:04]} 30. Rxf3 {[%clk 0:00:14]} 1-0


[Site "https://www.chess.com"]